bitfinex-derivatives/quotes_BTCF0:USTF0_20250901
["timestamp","ask_amount","ask_price","bid_price","bid_amount"]
[1756693646492,0.8974,107750.0,107740.0,1.04200294]
[1756693646688,0.92038,107750.0,107740.0,0.44663219]
[1756693646893,0.92138,107750.0,107740.0,0.79200294]
[1756693647293,0.92038,107750.0,107740.0,0.78900294]
[1756693647493,0.92138,107750.0,107740.0,0.79300294]
[1756693647696,0.02498,107750.0,107740.0,1.08300294]
[1756693647897,0.92186,107750.0,107740.0,1.08300294]
[1756693648092,0.9565,107750.0,107740.0,1.08300294]
[1756693648894,0.9565,107750.0,107740.0,1.08000294]
[1756693650096,0.92066,107750.0,107740.0,1.08000294]
[1756693650398,0.97754778,107750.0,107740.0,1.08000294]
[1756693650591,0.97754778,107750.0,107740.0,0.75487294]
[1756693650791,1.32291853,107750.0,107740.0,0.00407]
[1756693650996,0.97726778,107750.0,107740.0,0.42392]
[1756693651698,0.08186778,107750.0,107740.0,0.42392]
[1756693651897,0.97730778,107750.0,107740.0,0.76929075]
[1756693652399,0.97706778,107750.0,107740.0,0.76929075]
[1756693653196,0.04722778,107750.0,107740.0,0.76929075]
[1756693653500,0.89696,107750.0,107740.0,1.33929075]
[1756693653702,0.002,107750.0,107740.0,1.43209795]
[1756693653903,0.76284,107750.0,107740.0,1.43209795]
[1756693655100,0.002,107750.0,107740.0,1.43209795]
[1756693655300,0.003,107750.0,107740.0,1.43209795]
[1756693655498,0.004,107750.0,107740.0,1.43209795]
[1756693655896,1.96096,107780.0,107740.0,1.43209795]
[1756693655897,1.99655,107780.0,107740.0,2.29100795]
[1756693656198,2.042218,107780.0,107770.0,0.02333]
[1756693656504,2.936458,107780.0,107770.0,0.02333]
[1756693656803,2.936458,107780.0,107770.0,0.05853]
[1756693657004,2.938458,107780.0,107770.0,0.05853]
[1756693657601,2.936458,107780.0,107770.0,0.05853]
[1756693657801,2.940458,107780.0,107770.0,0.001]
[1756693658001,3.190458,107780.0,107770.0,0.001]
[1756693658302,3.191458,107780.0,107770.0,0.001]
[1756693658498,3.190538,107780.0,107770.0,0.02433]
[1756693658703,3.190538,107780.0,107770.0,0.42033]
[1756693658899,2.300218,107780.0,107770.0,0.42133]
[1756693659101,2.050218,107780.0,107770.0,0.76670075]
[1756693659300,2.943858,107780.0,107770.0,1.11670075]
[1756693661602,2.050218,107780.0,107770.0,1.11670075]
[1756693661908,2.943658,107780.0,107770.0,1.11670075]
[1756693662108,2.050218,107780.0,107770.0,1.11670075]
[1756693662305,2.943658,107780.0,107770.0,1.11670075]
[1756693662505,2.943658,107780.0,107770.0,0.76670075]
[1756693662706,2.943658,107780.0,107770.0,0.42133]
[1756693662902,2.943658,107780.0,107770.0,0.3628]
[1756693663106,3.89982875,107780.0,107770.0,0.002]
[1756693664012,3.554458,107780.0,107770.0,0.002]
[1756693664404,3.89982875,107780.0,107770.0,0.002]
[1756693664599,3.96939455,107780.0,107760.0,0.00307]
[1756693664909,0.05897,107770.0,107760.0,0.00307]
[1756693665109,0.081258,107770.0,107760.0,0.00307]
[1756693665700,1.03742875,107770.0,107760.0,0.00307]
[1756693665907,0.05897,107750.0,107740.0,0.70617075]
[1756693666106,0.975098,107750.0,107740.0,0.72950075]
[1756693666313,0.975098,107750.0,107740.0,0.76470075]
[1756693666707,0.975098,107750.0,107730.0,0.37032269]
[1756693666708,0.939508,107750.0,107730.0,0.75089344]
[1756693666906,0.05897,107740.0,107730.0,0.51885269]
[1756693667109,0.081258,107740.0,107730.0,0.86422344]
[1756693667312,0.081258,107740.0,107730.0,0.77422344]
[1756693667507,0.081258,107740.0,107730.0,0.54885269]
[1756693667710,0.081258,107740.0,107730.0,0.38413]
[1756693667914,0.081258,107740.0,107730.0,0.42033]
[1756693668109,0.081258,107740.0,107730.0,0.76570075]
[1756693668312,0.081258,107740.0,107730.0,0.42033]
[1756693668513,0.081258,107740.0,107730.0,0.76570075]
[1756693669412,0.081258,107740.0,107730.0,0.42133]
[1756693669602,0.081258,107740.0,107730.0,0.42233]
[1756693669800,0.081258,107740.0,107730.0,0.43058373]
[1756693670005,0.082258,107740.0,107730.0,0.43058373]
[1756693670405,0.083258,107740.0,107730.0,0.42958373]
[1756693670612,0.083258,107740.0,107730.0,0.42033]
[1756693670913,1.11443887,107740.0,107730.0,0.001]
[1756693671406,0.694058,107740.0,107730.0,0.001]
[1756693671712,1.226818,107740.0,107730.0,0.02433]
[1756693672308,1.226818,107740.0,107730.0,0.001]
[1756693673610,0.333258,107740.0,107730.0,0.02433]
[1756693673811,1.226058,107740.0,107730.0,0.05953]
[1756693675317,0.083258,107740.0,107730.0,0.76570075]
[1756693675515,0.09738271,107740.0,107730.0,1.35570075]
[1756693675716,0.99010271,107740.0,107730.0,1.35570075]
[1756693676015,0.917008,107740.0,107730.0,1.35570075]
[1756693676215,0.89472,107740.0,107730.0,1.35570075]
[1756693676717,0.95369,107740.0,107730.0,0.67033]
[1756693677017,0.95369,107740.0,107730.0,1.01570075]
[1756693678007,0.02538,107740.0,107730.0,1.30570075]
[1756693678208,0.002,107740.0,107730.0,1.28570075]
[1756693678622,0.81341,107740.0,107730.0,0.67033]
[1756693678818,0.81341,107740.0,107730.0,1.01570075]
[1756693679316,0.81341,107740.0,107730.0,0.76570075]
[1756693680720,0.81341,107740.0,107730.0,1.12570075]
[1756693681020,0.89516,107740.0,107730.0,1.13570075]
[1756693681410,0.89516,107740.0,107730.0,1.38570075]
[1756693681914,0.002,107740.0,107730.0,1.38570075]
[1756693682119,0.72196,107740.0,107730.0,1.38570075]
[1756693682318,0.95664,107740.0,107730.0,0.67033]
[1756693682611,0.95664,107740.0,107730.0,1.01570075]
[1756693682821,0.95664,107740.0,107730.0,0.02433]
[1756693683018,0.95708,107740.0,107730.0,0.001]
[1756693683417,0.95708,107740.0,107730.0,0.38639]
[1756693683612,0.95708,107740.0,107730.0,0.42063]
[1756693683920,0.95708,107740.0,107730.0,0.05983]
[1756693684120,0.95708,107740.0,107730.0,0.42063]
[1756693684316,1.20708,107740.0,107730.0,0.38639]
[1756693684528,1.20708,107740.0,107730.0,0.02559]
[1756693685526,1.20708,107740.0,107730.0,0.10559]
[1756693685716,0.31432,107740.0,107730.0,0.02559]
[1756693686015,1.20664,107740.0,107730.0,0.001]
[1756693686424,0.31432,107740.0,107730.0,0.02559]
[1756693686609,1.22808518,107740.0,107730.0,0.05983]
[1756693687015,1.22796518,107740.0,107730.0,0.05983]
[1756693687426,1.22796518,107740.0,107730.0,0.02559]
[1756693687717,0.41077346,107740.0,107730.0,0.02559]
[1756693687924,1.30189346,107740.0,107730.0,0.02559]
[1756693688421,1.30165346,107740.0,107730.0,0.02559]
[1756693688617,0.41077346,107740.0,107730.0,0.02559]
[1756693688825,1.27896828,107740.0,107730.0,0.05983]
[1756693689024,1.27896828,107740.0,107730.0,0.37096075]
[1756693689321,1.27896828,107740.0,107730.0,0.02559]
[1756693689724,1.30122083,107740.0,107730.0,0.02559]
[1756693689915,1.66202083,107740.0,107730.0,0.001]
[1756693690420,1.30122083,107740.0,107730.0,0.001]
[1756693691326,2.36739158,107740.0,107720.0,0.00464]
[1756693691514,0.42312,107730.0,107720.0,0.00464]
[1756693691714,0.7907433,107730.0,107720.0,0.00464]
[1756693691920,0.02495,107710.0,107690.0,0.38149834]
[1756693692120,0.95304,107700.0,107690.0,0.71608834]
[1756693692424,0.95304,107700.0,107690.0,0.75032834]
[1756693692824,0.95304,107700.0,107690.0,0.71608834]
[1756693693123,0.97530099,107700.0,107690.0,0.75032834]
[1756693693319,0.97630099,107700.0,107690.0,0.314]
[1756693693620,0.97586099,107700.0,107690.0,0.3648]
[1756693693826,0.08558099,107700.0,107690.0,0.02859]
[1756693694021,0.97574099,107700.0,107690.0,0.02859]
[1756693694226,0.97662099,107700.0,107690.0,0.03459]
[1756693694526,0.97662099,107700.0,107690.0,0.06883]
[1756693694722,0.97566099,107700.0,107690.0,0.06383]
[1756693694930,0.97966099,107700.0,107690.0,0.05983]
[1756693696630,0.9574,107700.0,107690.0,0.05983]
[1756693696830,0.95648,107700.0,107690.0,0.76600075]
[1756693697233,0.95648,107700.0,107690.0,1.12600075]
[1756693697630,0.06732,107700.0,107690.0,1.12600075]
[1756693697928,0.95616,107700.0,107690.0,1.12600075]
[1756693700435,0.06732,107700.0,107690.0,1.12600075]
[1756693700737,0.02995,107700.0,107690.0,1.12600075]
[1756693700937,0.91803,107700.0,107690.0,1.12600075]
[1756693701440,0.9554,107700.0,107690.0,1.12600075]
[1756693704240,0.9554,107700.0,107690.0,0.76600075]
[1756693704534,0.9554,107700.0,107690.0,1.09600075]
[1756693705731,0.06732,107700.0,107690.0,1.09600075]
[1756693705936,0.95396,107700.0,107690.0,1.09600075]
[1756693706431,0.95396,107700.0,107690.0,0.75063]
[1756693706634,0.95396,107700.0,107690.0,1.09600075]
[1756693707546,0.06732,107700.0,107690.0,1.09600075]
[1756693708044,0.89044,107700.0,107690.0,1.55381644]
[1756693708346,0.92781,107700.0,107690.0,1.27722322]
[1756693708540,0.89044,107700.0,107690.0,1.27722322]
[1756693708943,0.88996,107700.0,107690.0,1.55381644]
[1756693709244,0.88996,107700.0,107690.0,1.27722322]
[1756693709445,0.005,107700.0,107690.0,1.64666944]
[1756693709939,0.06232,107730.0,107720.0,0.02459]
[1756693710244,0.91015,107730.0,107720.0,1.04622322]
[1756693710739,2.07297828,107740.0,107720.0,1.13904932]
[1756693710940,2.08277976,107740.0,107730.0,0.69622322]
[1756693711141,2.84636,107740.0,107730.0,1.34199303]
[1756693712041,0.001,107740.0,107730.0,1.47818651]
[1756693712835,0.001,107740.0,107730.0,2.36378651]
[1756693713741,0.001,107740.0,107730.0,2.44081325]
[1756693714838,0.55156,107760.0,107750.0,0.1162601]
[1756693715044,0.03607,107770.0,107750.0,1.56342142]
[1756693715345,0.06009,107770.0,107760.0,0.76555132]
[1756693715546,0.06009,107770.0,107760.0,1.09555132]
[1756693715746,0.06009,107770.0,107760.0,0.76555132]
[1756693715948,0.94497,107770.0,107760.0,0.76555132]
[1756693716146,0.9089,107770.0,107760.0,1.07555132]
[1756693716345,0.06009,107770.0,107760.0,1.07555132]
[1756693716540,0.94481,107770.0,107760.0,1.07555132]
[1756693717440,0.94481,107770.0,107760.0,0.76555132]
[1756693717635,0.94481,107770.0,107760.0,0.78555132]
[1756693717839,0.94481,107770.0,107760.0,1.13555132]
[1756693718034,0.06009,107770.0,107760.0,1.13555132]
[1756693718237,0.94433,107770.0,107760.0,1.13555132]
[1756693718446,0.95133,107770.0,107760.0,1.13655132]
[1756693718951,0.95033,107770.0,107760.0,1.13655132]
[1756693720449,0.95033,107770.0,107760.0,1.14655132]
[1756693720846,0.95033,107770.0,107760.0,0.76655132]
[1756693721548,0.95033,107770.0,107760.0,0.78655132]
[1756693721749,0.95033,107770.0,107760.0,1.04655132]
[1756693721950,0.95033,107770.0,107760.0,0.78655132]
[1756693722155,0.06609,107770.0,107760.0,1.17934482]
[1756693722354,0.91254,107770.0,107760.0,1.17934482]
[1756693722554,0.91254,107770.0,107760.0,0.87934482]
[1756693722754,0.91254,107770.0,107760.0,1.10655132]
[1756693723355,0.06609,107770.0,107760.0,1.10655132]
[1756693723552,0.94857,107770.0,107760.0,1.10655132]
[1756693724152,0.94857,107770.0,107760.0,1.08655132]
[1756693726950,0.94721,107770.0,107760.0,1.17934502]
[1756693727154,0.91114,107770.0,107760.0,1.17934502]
[1756693727844,0.94721,107770.0,107760.0,1.08655132]
[1756693728050,0.94721,107770.0,107760.0,0.76655132]
[1756693728453,0.06609,107770.0,107760.0,0.76655132]
[1756693728656,0.94661,107770.0,107760.0,0.44099]
[1756693728856,0.94661,107770.0,107760.0,1.11655132]
[1756693729959,0.94661,107770.0,107760.0,1.20934502]
[1756693730455,0.006,107770.0,107760.0,1.20934502]
[1756693730657,0.006,107770.0,107760.0,2.68490634]
[1756693731763,0.006,107770.0,107760.0,2.68478634]
[1756693732658,0.004,107770.0,107760.0,2.68678634]
[1756693732858,0.004,107770.0,107760.0,1.80690634]
[1756693733055,0.006,107770.0,107760.0,2.68430634]
[1756693733257,0.003,107770.0,107760.0,2.68530634]
[1756693734063,0.003,107770.0,107760.0,2.68430634]
[1756693734364,0.006,107770.0,107760.0,2.68430634]
[1756693736263,0.03607,107800.0,107790.0,0.03573]
[1756693736564,0.27772985,107800.0,107790.0,1.09555132]
[1756693736760,0.08228985,107800.0,107790.0,1.09555132]
[1756693736962,0.02219985,107800.0,107790.0,1.78388014]
[1756693737153,2.02109,107820.0,107810.0,0.1519403]
[1756693737357,0.04623098,107820.0,107810.0,1.59910162]
[1756693737660,0.06009,107830.0,107820.0,0.05919]
[1756693737862,0.96062221,107830.0,107820.0,0.76555132]
[1756693738259,0.96062221,107830.0,107820.0,1.05475153]
[1756693738565,0.96062221,107830.0,107820.0,0.79475153]
[1756693738865,0.97062221,107830.0,107820.0,0.79575153]
[1756693739661,0.97062221,107830.0,107820.0,0.77575153]
[1756693739860,0.97062221,107830.0,107820.0,1.08575153]
[1756693740261,1.22062221,107830.0,107820.0,1.05002153]
[1756693740457,1.22762221,107830.0,107820.0,0.70546021]
[1756693741068,1.22762221,107830.0,107820.0,0.002]
[1756693741463,1.58842221,107830.0,107820.0,0.002]
[1756693741663,1.22762221,107830.0,107820.0,0.26546]
[1756693741869,1.22750221,107830.0,107820.0,0.26546]
[1756693742064,1.22750221,107830.0,107820.0,0.002]
[1756693742967,1.22750221,107830.0,107820.0,0.29521]
[1756693743159,0.03921221,107830.0,107820.0,1.12955542]
[1756693743366,0.94158221,107830.0,107820.0,1.12955542]
[1756693743765,0.06346221,107830.0,107820.0,1.12955542]
[1756693744271,0.03921221,107830.0,107820.0,1.12955542]
[1756693745167,0.09896221,107830.0,107820.0,0.69125]
[1756693745361,0.09896221,107830.0,107820.0,1.03681132]
[1756693745760,0.06346221,107830.0,107820.0,1.12955592]
[1756693745970,0.09896221,107830.0,107820.0,1.03681132]
[1756693746560,0.97700221,107830.0,107820.0,1.03681132]
[1756693749065,0.96146221,107830.0,107820.0,1.12955702]
[1756693749577,0.99696221,107830.0,107820.0,1.12955702]
[1756693749876,0.99696221,107830.0,107820.0,1.03681132]
[1756693750875,0.08346221,107830.0,107820.0,1.03681132]
[1756693751071,0.99688221,107830.0,107820.0,1.12955682]
[1756693751271,0.99688221,107830.0,107820.0,1.03681132]
[1756693753077,0.11896221,107830.0,107820.0,1.03681132]
[1756693753276,0.05921221,107830.0,107820.0,1.12955672]
[1756693753475,0.93709221,107830.0,107820.0,1.12955672]
[1756693753673,0.97259221,107830.0,107820.0,1.03681132]
[1756693754079,0.99684221,107830.0,107820.0,0.96726472]
[1756693754875,0.05921221,107830.0,107820.0,0.96726472]
[1756693755181,0.05921221,107830.0,107820.0,2.46390494]
[1756693755877,0.05921221,107830.0,107820.0,1.9118755]
[1756693756075,0.05921221,107830.0,107820.0,2.25684492]
[1756693757277,0.05921221,107830.0,107820.0,1.37896492]
[1756693760577,0.05921221,107830.0,107820.0,0.94125]
[1756693760784,0.11896221,107830.0,107820.0,1.03622032]
[1756693761083,0.36896221,107830.0,107820.0,0.002]
[1756693761282,0.72976221,107830.0,107820.0,0.002]
[1756693761779,1.12415909,107830.0,107820.0,0.002]
[1756693761987,1.47063461,107830.0,107810.0,0.02039366]
[1756693762281,1.35792755,107820.0,107810.0,0.02039366]
[1756693762474,1.01933976,107820.0,107810.0,0.02039366]
[1756693762672,1.97511008,107820.0,107810.0,0.02039366]
[1756693763385,1.97511008,107820.0,107810.0,0.02139366]
[1756693763683,1.97511008,107820.0,107800.0,0.00934556]
[1756693763884,0.05365,107810.0,107800.0,0.37]
[1756693764085,0.07586221,107810.0,107800.0,0.37]
[1756693764282,0.05365,107800.0,107790.0,0.03253883]
[1756693764475,1.37331976,107800.0,107780.0,0.41676614]
[1756693764681,0.0294,107790.0,107780.0,1.08173646]
[1756693764881,0.07586221,107790.0,107780.0,0.43997614]
[1756693765073,0.07586221,107790.0,107780.0,0.38401]
[1756693765279,0.07586221,107790.0,107780.0,0.02321]
[1756693765679,0.07586221,107790.0,107780.0,0.03238635]
[1756693765886,0.13027976,107790.0,107780.0,0.01017635]
[1756693766089,0.49107976,107790.0,107780.0,0.001]
[1756693766286,1.37815976,107790.0,107780.0,0.001]
[1756693766482,1.38215976,107790.0,107780.0,0.002]
[1756693766986,1.4749236,107790.0,107780.0,0.002]
[1756693767288,1.4749236,107790.0,107780.0,0.02521]
[1756693767587,1.4749236,107790.0,107780.0,0.322]
[1756693767787,2.04049392,107790.0,107760.0,0.3608]
[1756693767989,0.3608,107780.0,107760.0,0.80877903]
[1756693768284,0.02221221,107780.0,107770.0,0.76422032]
[1756693768489,0.10397605,107790.0,107770.0,1.13422032]
[1756693768689,0.88652,107780.0,107770.0,1.13422032]
[1756693768887,0.90873221,107780.0,107770.0,1.13422032]
[1756693769188,0.91073221,107780.0,107770.0,1.13422032]
[1756693769889,0.91273221,107780.0,107770.0,1.13622032]
[1756693770090,0.93273221,107780.0,107770.0,1.13622032]
[1756693771390,0.93273221,107780.0,107770.0,1.13522032]
[1756693771589,0.93773221,107780.0,107770.0,1.13622032]
[1756693775392,0.91552,107780.0,107770.0,1.13622032]
[1756693775897,1.18858909,107780.0,107770.0,0.002]
[1756693776387,1.18858909,107780.0,107770.0,0.06211]
[1756693776388,1.54718909,107780.0,107770.0,0.06211]
[1756693776600,1.54718909,107780.0,107770.0,0.02681]
[1756693776787,1.18638909,107780.0,107770.0,0.02681]
[1756693776994,1.54718909,107780.0,107770.0,0.02681]
[1756693777190,2.21215941,107780.0,107770.0,0.002]
[1756693778300,1.89215941,107780.0,107770.0,0.002]
[1756693778496,2.22215941,107780.0,107770.0,0.002]
[1756693779294,1.33783941,107780.0,107770.0,0.002]
[1756693779598,2.22199941,107780.0,107770.0,0.002]
[1756693779798,2.22151941,107780.0,107770.0,0.002]
[1756693780200,2.22139941,107780.0,107770.0,0.002]
[1756693780796,1.33783941,107780.0,107770.0,0.002]
[1756693781003,2.24109025,107780.0,107770.0,0.002]
[1756693782499,2.24117025,107780.0,107770.0,0.002]
[1756693783299,2.24057025,107780.0,107770.0,0.002]
[1756693783700,0.66283993,107780.0,107770.0,0.002]
[1756693783895,0.05203993,107780.0,107770.0,0.40708032]
[1756693784094,1.29507993,107780.0,107770.0,0.40708032]
[1756693784411,0.93427993,107780.0,107770.0,0.40708032]
[1756693784588,1.29507993,107780.0,107770.0,0.02681]
[1756693785090,1.29507993,107780.0,107770.0,0.06211]
[1756693786494,0.41283993,107780.0,107770.0,0.06211]
[1756693786699,1.29487993,107780.0,107770.0,0.06211]
[1756693787609,1.29487993,107780.0,107770.0,0.02681]
[1756693788797,1.29487993,107780.0,107770.0,0.002]
[1756693789001,1.63985025,107780.0,107770.0,0.002]
[1756693789202,0.66283993,107780.0,107770.0,0.002]
[1756693789398,1.54399993,107780.0,107770.0,0.02681]
[1756693789595,1.54399993,107780.0,107770.0,0.002]
[1756693789896,0.66283993,107780.0,107770.0,0.02681]
[1756693790103,1.54399993,107780.0,107770.0,0.002]
[1756693790602,1.88897025,107780.0,107770.0,0.002]
[1756693790806,1.54399993,107780.0,107770.0,0.002]
[1756693791110,1.88897025,107780.0,107770.0,0.002]
[1756693792299,1.9383878,107780.0,107770.0,0.002]
[1756693793007,1.88897025,107780.0,107770.0,0.002]
[1756693793203,1.9383878,107780.0,107770.0,0.002]
[1756693794608,2.3183878,107780.0,107770.0,0.002]
[1756693795207,2.0683878,107780.0,107770.0,0.002]
[1756693795709,2.06615343,107780.0,107770.0,0.002]
[1756693796710,1.68615343,107780.0,107770.0,0.002]
[1756693796910,2.05615343,107780.0,107770.0,0.002]
[1756693797113,2.00673588,107780.0,107770.0,0.002]
[1756693797410,2.32263796,107780.0,107770.0,0.002]
[1756693797811,2.25673588,107780.0,107770.0,0.002]
[1756693798006,2.18827007,107780.0,107770.0,0.002]
[1756693798212,2.18839007,107780.0,107770.0,0.002]
[1756693798512,2.01423844,107780.0,107770.0,0.002]
[1756693799010,0.85853393,107780.0,107770.0,0.02681]
[1756693799211,0.85853393,107780.0,107770.0,0.06211]
[1756693799212,1.43773393,107780.0,107770.0,0.06211]
[1756693799404,0.49260556,107780.0,107770.0,0.06211]
[1756693799605,1.3412194,107780.0,107770.0,0.06211]
[1756693800304,0.4620594,107780.0,107770.0,0.06211]
[1756693800704,0.10127443,107780.0,107770.0,0.65755852]
[1756693800905,0.93100556,107780.0,107770.0,0.65755852]
[1756693801104,0.05180556,107780.0,107770.0,1.01755852]
[1756693801307,0.05180556,107780.0,107770.0,1.37835852]
[1756693801514,0.05180556,107780.0,107770.0,0.47211]
[1756693801515,0.93100556,107780.0,107770.0,0.47211]
[1756693801709,1.29180556,107780.0,107770.0,0.47211]
[1756693801902,1.29180556,107780.0,107770.0,0.18681]
[1756693802103,0.41260556,107780.0,107770.0,0.22259]
[1756693802301,0.93100556,107780.0,107770.0,1.17883852]
[1756693802505,0.93100556,107780.0,107770.0,0.81803852]
[1756693802706,0.05180556,107780.0,107770.0,0.31259]
[1756693803010,0.05180556,107780.0,107770.0,1.33883852]
[1756693803212,0.05180556,107780.0,107770.0,0.65803852]
[1756693803213,0.93096556,107780.0,107770.0,0.65803852]
[1756693803403,0.93096556,107780.0,107770.0,1.37883852]
[1756693803715,1.63721408,107780.0,107770.0,0.002]
[1756693804015,1.68668295,107780.0,107770.0,0.002]
[1756693804519,1.34135443,107780.0,107770.0,0.06039]
[1756693805309,1.29188556,107780.0,107770.0,0.06039]
[1756693805809,0.05180556,107780.0,107770.0,0.98583852]
[1756693806009,0.93096556,107780.0,107770.0,1.34663852]
[1756693806212,0.05180556,107780.0,107770.0,1.34663852]
[1756693806417,0.93096556,107780.0,107770.0,1.34663852]
[1756693806621,0.93096556,107780.0,107770.0,1.01663852]
[1756693806809,0.93096556,107780.0,107770.0,0.65583852]
[1756693807116,0.93104556,107780.0,107770.0,0.06039]
[1756693807316,1.29184556,107780.0,107770.0,0.02461]
[1756693808016,0.41260556,107780.0,107770.0,0.02461]
[1756693808215,0.93112556,107780.0,107770.0,0.02461]
[1756693808416,1.29192556,107780.0,107770.0,0.02461]
[1756693809317,0.93112556,107780.0,107770.0,0.02461]
[1756693810014,0.93104556,107780.0,107770.0,0.06039]
[1756693810416,0.93104556,107780.0,107770.0,0.02461]
[1756693810726,1.63729408,107780.0,107770.0,0.002]
[1756693810914,1.34131443,107780.0,107770.0,0.002]
[1756693811818,1.29184556,107780.0,107770.0,0.002]
[1756693812221,1.29184556,107780.0,107770.0,0.02461]
[1756693812521,1.29184556,107780.0,107770.0,0.002]
[1756693813116,1.88729408,107780.0,107770.0,0.002]
[1756693813418,2.29676295,107780.0,107770.0,0.002]
[1756693813612,2.31322245,107780.0,107770.0,0.001]
[1756693814422,2.32967169,107780.0,107740.0,0.02036154]
[1756693814610,0.7216,107750.0,107740.0,0.04297154]
[1756693814812,1.62356556,107750.0,107740.0,0.04297154]
[1756693815020,2.32356556,107750.0,107740.0,0.02036154]
[1756693815715,2.32356556,107750.0,107740.0,0.02236154]
[1756693816122,2.34356556,107750.0,107740.0,0.02236154]
[1756693816312,4.66005408,107750.0,107740.0,0.02236154]
[1756693816516,4.99005408,107750.0,107740.0,0.02236154]
[1756693816717,5.3394804,107750.0,107740.0,0.02236154]
[1756693816918,5.34888192,107750.0,107740.0,0.002]
[1756693817122,5.0034734,107750.0,107740.0,0.002]
[1756693817323,5.34892192,107750.0,107740.0,0.002]
[1756693818818,5.47196018,107750.0,107740.0,0.002]
[1756693820125,4.77196018,107750.0,107740.0,0.002]
[1756693822228,4.77260018,107750.0,107740.0,0.002]
[1756693824327,3.89276018,107750.0,107740.0,0.002]
[1756693824528,4.77212018,107750.0,107740.0,0.002]
[1756693825619,3.89276018,107750.0,107740.0,0.002]
[1756693825926,4.77216018,107750.0,107740.0,0.002]
[1756693826528,3.89276018,107750.0,107740.0,0.002]
[1756693826829,4.72273386,107750.0,107700.0,0.05839]
[1756693827022,0.35616,107710.0,107700.0,0.35839]
[1756693827330,1.2358,107710.0,107700.0,0.35839]
[1756693827632,0.87964,107710.0,107700.0,0.35839]
[1756693828133,0.3608,107720.0,107710.0,0.05839]
[1756693828327,1.26273587,107720.0,107710.0,0.05839]
[1756693828632,1.26241587,107720.0,107710.0,0.05839]
[1756693829028,1.60834439,107720.0,107710.0,0.05839]
[1756693829329,1.61134439,107720.0,107710.0,0.05939]
[1756693829532,0.38597587,107720.0,107710.0,0.62939]
[1756693829834,1.26929587,107720.0,107710.0,0.63039]
[1756693830033,1.26929587,107720.0,107710.0,0.31039]
[1756693830331,1.34175056,107720.0,107710.0,0.31039]
[1756693830534,0.46143056,107720.0,107710.0,0.31039]
[1756693830723,1.34151056,107720.0,107710.0,0.66039]
[1756693830929,1.36151056,107720.0,107710.0,0.31039]
[1756693832532,1.70695908,107720.0,107710.0,0.31039]
[1756693833633,1.70695908,107720.0,107710.0,0.27461]
[1756693833834,1.70695908,107720.0,107710.0,0.252]
[1756693834537,1.70695908,107720.0,107710.0,0.002]
[1756693834733,2.08695908,107720.0,107710.0,0.002]
[1756693834933,2.4324076,107720.0,107710.0,0.002]
[1756693835130,2.6824076,107720.0,107710.0,0.002]
[1756693835329,2.73155264,107720.0,107710.0,0.002]
[1756693835732,2.6824076,107720.0,107710.0,0.002]
[1756693836039,2.74830936,107720.0,107710.0,0.002]
[1756693836739,2.04069477,107720.0,107710.0,0.002]
[1756693836933,2.73159181,107720.0,107710.0,0.002]
[1756693837130,2.6824876,107720.0,107710.0,0.002]
[1756693837532,2.74838936,107720.0,107710.0,0.002]
[1756693837842,1.86822936,107720.0,107710.0,0.002]
[1756693838025,2.74782936,107720.0,107710.0,0.002]
[1756693838230,1.86822936,107720.0,107710.0,0.002]
[1756693838431,2.05697232,107720.0,107710.0,0.002]
[1756693838630,2.74786936,107720.0,107710.0,0.002]
[1756693839337,1.86822936,107720.0,107710.0,0.002]
[1756693839734,2.49802936,107720.0,107710.0,0.002]
[1756693841140,1.61822936,107720.0,107710.0,0.002]
[1756693841342,2.49790936,107720.0,107710.0,0.002]
[1756693842342,2.08655908,107720.0,107710.0,0.02631]
[1756693842642,1.75579211,107720.0,107710.0,0.06214]
[1756693842941,2.06579211,107720.0,107710.0,0.02631]
[1756693843141,2.06579211,107720.0,107710.0,0.002]
[1756693843543,2.06579211,107720.0,107710.0,0.02631]
[1756693843844,1.41034359,107720.0,107710.0,0.31214]
[1756693844254,2.06579211,107720.0,107710.0,0.31214]
[1756693844451,2.06579211,107720.0,107710.0,0.27631]
[1756693844452,1.70659908,107720.0,107710.0,0.27631]
[1756693844855,2.05659908,107720.0,107710.0,0.002]
[1756693845152,2.10579211,107720.0,107710.0,0.002]
[1756693845446,1.75579211,107720.0,107710.0,0.002]
[1756693845652,2.09579211,107720.0,107710.0,0.002]
[1756693845850,1.36115056,107720.0,107710.0,0.02631]
[1756693846047,2.08659908,107720.0,107710.0,0.002]
[1756693846246,1.25607211,107720.0,107710.0,0.06214]
[1756693846447,0.82687908,107720.0,107710.0,0.31214]
[1756693846647,1.70659908,107720.0,107710.0,0.31214]
[1756693846850,1.75579211,107720.0,107710.0,0.31214]
[1756693847549,1.75589529,107720.0,107710.0,0.31214]
[1756693848354,1.70659908,107720.0,107710.0,0.31214]
[1756693848655,1.75590104,107720.0,107710.0,0.31214]
[1756693848855,1.41045252,107720.0,107710.0,0.31214]
[1756693849054,1.75590104,107720.0,107710.0,0.31214]
[1756693849254,0.53073252,107720.0,107710.0,0.31214]
[1756693849446,1.41045252,107720.0,107710.0,0.31214]
[1756693849646,0.53073252,107720.0,107710.0,0.31214]
[1756693849849,1.41045252,107720.0,107710.0,0.31214]
[1756693850753,1.75590104,107720.0,107710.0,0.002]
[1756693850953,2.3920476,107720.0,107710.0,0.002]
[1756693851154,2.6420476,107720.0,107710.0,0.002]
[1756693851358,2.29659908,107720.0,107710.0,0.002]
[1756693851560,2.36235402,107720.0,107710.0,0.002]
[1756693851758,2.70780262,107720.0,107710.0,0.002]
[1756693852656,2.72442521,107720.0,107710.0,0.002]
[1756693854060,2.72442521,107720.0,107680.0,0.08091919]
[1756693854256,0.41012435,107690.0,107680.0,0.08091919]
[1756693854451,1.66042874,107690.0,107680.0,0.02431]
[1756693854652,1.31498022,107690.0,107680.0,0.06014]
[1756693855556,1.31598022,107690.0,107680.0,0.06214]
[1756693855861,1.31590022,107690.0,107680.0,0.06214]
[1756693856061,0.97510022,107690.0,107680.0,0.06214]
[1756693856361,0.09250022,107690.0,107680.0,0.06214]
[1756693856561,0.97470022,107690.0,107680.0,0.31214]